[Event "Titled Tuesday Blitz May 16 Early 2023"]
[White "Grossboss19"]
[Black "Piesik, Piotr"]
[BlackFideId "1136194"]
[WhiteElo "2440"]
[BlackElo "2299"]
[Result "1/2-1/2"]
[Round "03"]
[TimeControl "180+2"]
[Date "2023.05.16"]
[WhiteClock "0:00:06"]
[BlackClock "0:00:07"]

1. Nf3 {[%clk 0:03:00]}  g6 {[%clk 0:02:58]} 2. h4 {[%clk 0:02:50]}  h5 {[%clk 0:02:58]} 3. d4 {[%clk 0:02:48]}  d5 {[%clk 0:02:57]} 4. c3 {[%clk 0:02:47]}  Nh6 {[%clk 0:02:56]} 5. Bf4 {[%clk 0:02:47]}  Nf5 {[%clk 0:02:55]} 6. e3 {[%clk 0:02:43]}  Bg7 {[%clk 0:02:55]} 7. Nbd2 {[%clk 0:02:42]}  c6 {[%clk 0:02:54]} 8. Bd3 {[%clk 0:02:35]}  Nd6 {[%clk 0:02:54]} 9. e4 {[%clk 0:02:21]}  Nxe4 {[%clk 0:02:53]} 10. Nxe4 {[%clk 0:02:22]}  dxe4 {[%clk 0:02:53]} 11. Bxe4 {[%clk 0:02:17]}  Nd7 {[%clk 0:02:54]} 12. Ng5 {[%clk 0:02:12]}  Nf6 {[%clk 0:02:53]} 13. Bd3 {[%clk 0:02:10]}  Nd5 {[%clk 0:02:44]} 14. Bg3 {[%clk 0:02:04]}  Bf5 {[%clk 0:02:43]} 15. Bxf5 {[%clk 0:01:48]}  gxf5 {[%clk 0:02:44]} 16. Qf3 {[%clk 0:01:47]}  e6 {[%clk 0:02:44]} 17. O-O {[%clk 0:01:44]}  Qf6 {[%clk 0:02:38]} 18. Be5 {[%clk 0:01:33]}  Qg6 {[%clk 0:02:35]} 19. Bxg7 {[%clk 0:01:33]}  Qxg7 {[%clk 0:02:35]} 20. a4 {[%clk 0:01:25]}  O-O-O {[%clk 0:02:27]} 21. a5 {[%clk 0:01:23]}  a6 {[%clk 0:02:27]} 22. Rfd1 {[%clk 0:01:13]}  Nc7 {[%clk 0:02:19]} 23. Qe2 {[%clk 0:01:04]}  Rd6 {[%clk 0:02:15]} 24. Rd3 {[%clk 0:00:56]}  f6 {[%clk 0:02:14]} 25. Nh3 {[%clk 0:00:56]}  Qg4 {[%clk 0:02:11]} 26. Re1 {[%clk 0:00:36]}  Qxh4 {[%clk 0:02:08]} 27. Rg3 {[%clk 0:00:36]}  Re8 {[%clk 0:01:51]} 28. Qf3 {[%clk 0:00:33]}  Rd7 {[%clk 0:01:34]} 29. Rg6 {[%clk 0:00:33]}  Nd5 {[%clk 0:01:28]} 30. Rh6 {[%clk 0:00:27]}  Qg4 {[%clk 0:01:26]} 31. Rxh5 {[%clk 0:00:24]}  Qxf3 {[%clk 0:01:26]} 32. gxf3 {[%clk 0:00:24]}  Rg7+ {[%clk 0:01:24]} 33. Kf1 {[%clk 0:00:24]}  Kd7 {[%clk 0:01:22]} 34. c4 {[%clk 0:00:21]}  Nc7 {[%clk 0:01:17]} 35. Nf4 {[%clk 0:00:20]}  e5 {[%clk 0:01:12]} 36. dxe5 {[%clk 0:00:20]}  fxe5 {[%clk 0:01:13]} 37. Nd3 {[%clk 0:00:21]}  e4 {[%clk 0:01:04]} 38. fxe4 {[%clk 0:00:19]}  fxe4 {[%clk 0:01:02]} 39. Nc5+ {[%clk 0:00:19]}  Kc8 {[%clk 0:01:02]} 40. Rxe4 {[%clk 0:00:19]}  Rxe4 {[%clk 0:01:00]} 41. Nxe4 {[%clk 0:00:19]}  Ne6 {[%clk 0:00:57]} 42. Nd6+ {[%clk 0:00:18]}  Kb8 {[%clk 0:00:44]} 43. Rh8+ {[%clk 0:00:18]}  Ka7 {[%clk 0:00:45]} 44. Nc8+ {[%clk 0:00:17]}  Kb8 {[%clk 0:00:45]} 45. b4 {[%clk 0:00:15]}  Kc7 {[%clk 0:00:42]} 46. Nb6 {[%clk 0:00:13]}  Nd8 {[%clk 0:00:36]} 47. Rh5 {[%clk 0:00:10]}  Nf7 {[%clk 0:00:33]} 48. c5 {[%clk 0:00:10]}  Kd8 {[%clk 0:00:30]} 49. Ke2 {[%clk 0:00:09]}  Ke7 {[%clk 0:00:30]} 50. Rh3 {[%clk 0:00:08]}  Ne5 {[%clk 0:00:29]} 51. Rh8 {[%clk 0:00:07]}  Rg4 {[%clk 0:00:28]} 52. Rb8 {[%clk 0:00:06]}  Rxb4 {[%clk 0:00:27]} 53. Rxb7+ {[%clk 0:00:06]}  Ke6 {[%clk 0:00:28]} 54. Ra7 {[%clk 0:00:06]}  Rb5 {[%clk 0:00:28]} 55. Rxa6 {[%clk 0:00:05]}  Rxc5 {[%clk 0:00:28]} 56. Ra8 {[%clk 0:00:05]}  Rc2+ {[%clk 0:00:25]} 57. Ke3 {[%clk 0:00:04]}  Ra2 {[%clk 0:00:25]} 58. f4 {[%clk 0:00:04]}  Ra3+ {[%clk 0:00:21]} 59. Ke4 {[%clk 0:00:03]}  Nd3 {[%clk 0:00:21]} 60. a6 {[%clk 0:00:03]}  Nc5+ {[%clk 0:00:20]} 61. Kd4 {[%clk 0:00:04]}  Nxa6 {[%clk 0:00:20]} 62. Re8+ {[%clk 0:00:03]}  Kf7 {[%clk 0:00:20]} 63. Re4 {[%clk 0:00:02]}  Nc7 {[%clk 0:00:19]} 64. Nc4 {[%clk 0:00:02]}  Ra4 {[%clk 0:00:19]} 65. Kc5 {[%clk 0:00:02]}  Ne6+ {[%clk 0:00:19]} 66. Kxc6 {[%clk 0:00:03]}  Kf6 {[%clk 0:00:18]} 67. Kb5 {[%clk 0:00:03]}  Ra1 {[%clk 0:00:17]} 68. Kc6 {[%clk 0:00:03]}  Ra6+ {[%clk 0:00:16]} 69. Kb5 {[%clk 0:00:04]}  Ra1 {[%clk 0:00:15]} 70. Nb6 {[%clk 0:00:04]}  Rb1+ {[%clk 0:00:15]} 71. Kc6 {[%clk 0:00:05]}  Rc1+ {[%clk 0:00:15]} 72. Kd6 {[%clk 0:00:05]}  Rd1+ {[%clk 0:00:14]} 73. Nd5+ {[%clk 0:00:05]}  Rxd5+ {[%clk 0:00:08]} 74. Kxd5 {[%clk 0:00:06]}  Ng7 {[%clk 0:00:07]} 75. Re5 {[%clk 0:00:05]}  Nf5 {[%clk 0:00:07]} 76. Ke4 {[%clk 0:00:06]}  Nd6+ {[%clk 0:00:08]} 77. Kf3 {[%clk 0:00:06]}  Nf7 {[%clk 0:00:08]} 78. Rd5 {[%clk 0:00:06]}  Kg6 {[%clk 0:00:08]} 79. Ra5 {[%clk 0:00:07]}  Kf6 {[%clk 0:00:07]} 80. Kg4 {[%clk 0:00:06]}  Nh6+ {[%clk 0:00:07]} 81. Kf3 {[%clk 0:00:07]}  Nf7 {[%clk 0:00:07]} 82. Ra6+ {[%clk 0:00:08]}  Kf5 {[%clk 0:00:07]} 83. Ra7 {[%clk 0:00:08]}  Kf6 {[%clk 0:00:07]} 84. Ke4 {[%clk 0:00:06]}  Nd6+ {[%clk 0:00:07]} 85. Kd5 {[%clk 0:00:07]}  Nf7 {[%clk 0:00:07]} 86. Rd7 {[%clk 0:00:05]}  Nh6 {[%clk 0:00:07]} 87. Ke4 {[%clk 0:00:05]}  Nf7 {[%clk 0:00:06]} 88. Rd2 {[%clk 0:00:05]}  Ke6 {[%clk 0:00:05]} 89. Kf3 {[%clk 0:00:04]}  Kf6 {[%clk 0:00:04]} 90. Rh2 {[%clk 0:00:03]}  Kf5 {[%clk 0:00:03]} 91. Rh5+ {[%clk 0:00:02]}  Kg6 {[%clk 0:00:03]} 92. Rh2 {[%clk 0:00:01]}  Kf5 {[%clk 0:00:03]} 93. Ke3 {[%clk 0:00:02]}  Kf6 {[%clk 0:00:03]} 94. Ke4 {[%clk 0:00:02]}  Nd6+ {[%clk 0:00:03]} 95. Kf3 {[%clk 0:00:02]}  Nf7 {[%clk 0:00:04]} 96. Kg3 {[%clk 0:00:02]}  Kf5 {[%clk 0:00:04]} 97. Rg2 {[%clk 0:00:03]}  Kf6 {[%clk 0:00:04]} 98. Kf3 {[%clk 0:00:03]}  Nd6 {[%clk 0:00:05]} 99. Rg8 {[%clk 0:00:03]}  Nf7 {[%clk 0:00:05]} 100. Rf8 {[%clk 0:00:04]}  Ke7 {[%clk 0:00:05]} 101. Ra8 {[%clk 0:00:04]}  Kf6 {[%clk 0:00:06]} 102. Ra6+ {[%clk 0:00:05]}  Kf5 {[%clk 0:00:06]} 103. Ra5+ {[%clk 0:00:06]}  Kf6 {[%clk 0:00:07]} 1/2-1/2


[Site "https://www.chess.com"]

[Event "Titled Tuesday Blitz May 16 Early 2023"]
[White "Munkhgal, Gombosuren"]
[Black "Pandey Srishti"]
[WhiteFideId "4901266"]
[BlackFideId "35093290"]
[WhiteElo "2528"]
[BlackElo "2123"]
[Result "1-0"]
[Round "03"]
[TimeControl "180+2"]
[Date "2023.05.16"]
[WhiteClock "0:00:32"]
[BlackClock "0:00:02"]

1. d4 {[%clk 0:02:57]}  Nf6 {[%clk 0:02:55]} 2. c4 {[%clk 0:02:57]}  d6 {[%clk 0:02:53]} 3. Nc3 {[%clk 0:02:56]}  Nbd7 {[%clk 0:02:53]} 4. g3 {[%clk 0:02:57]}  e5 {[%clk 0:02:52]} 5. Nf3 {[%clk 0:02:57]}  c6 {[%clk 0:02:44]} 6. Bg2 {[%clk 0:02:57]}  Be7 {[%clk 0:02:38]} 7. O-O {[%clk 0:02:51]}  e4 {[%clk 0:02:25]} 8. Ng5 {[%clk 0:02:46]}  d5 {[%clk 0:02:26]} 9. cxd5 {[%clk 0:02:40]}  cxd5 {[%clk 0:02:26]} 10. h4 {[%clk 0:02:36]}  O-O {[%clk 0:02:20]} 11. Nh3 {[%clk 0:02:21]}  a6 {[%clk 0:02:13]} 12. Nf4 {[%clk 0:02:21]}  Nb6 {[%clk 0:02:13]} 13. a4 {[%clk 0:02:18]}  Bg4 {[%clk 0:02:08]} 14. a5 {[%clk 0:02:07]}  Nc4 {[%clk 0:02:06]} 15. Qa4 {[%clk 0:02:03]}  Rc8 {[%clk 0:01:47]} 16. Re1 {[%clk 0:01:38]}  Bd7 {[%clk 0:01:25]} 17. Qa2 {[%clk 0:01:34]}  Bg4 {[%clk 0:01:19]} 18. Qa4 {[%clk 0:01:20]}  Bd7 {[%clk 0:01:18]} 19. Qa2 {[%clk 0:01:19]}  Bg4 {[%clk 0:01:18]} 20. f3 {[%clk 0:01:20]}  Bf5 {[%clk 0:00:57]} 21. g4 {[%clk 0:01:16]}  Bxg4 {[%clk 0:00:30]} 22. fxg4 {[%clk 0:01:16]}  Nxg4 {[%clk 0:00:31]} 23. Ncxd5 {[%clk 0:01:14]}  Bxh4 {[%clk 0:00:29]} 24. Rf1 {[%clk 0:01:14]}  Bg3 {[%clk 0:00:18]} 25. Qb3 {[%clk 0:01:11]}  Bh2+ {[%clk 0:00:13]} 26. Kh1 {[%clk 0:01:11]}  Qh4 {[%clk 0:00:12]} 27. Qh3 {[%clk 0:01:06]}  Qg5 {[%clk 0:00:10]} 28. Nh5 {[%clk 0:00:40]}  Qxd5 {[%clk 0:00:07]} 29. Qxg4 {[%clk 0:00:40]}  g6 {[%clk 0:00:03]} 30. Nf6+ {[%clk 0:00:31]}  Kg7 {[%clk 0:00:02]} 31. Nxd5 {[%clk 0:00:32]} 1-0


[Site "https://www.chess.com"]

[Event "Titled Tuesday Blitz May 16 Early 2023"]
[White "Raahul V S"]
[Black "Rottenwohrer Suarez, Juan"]
[WhiteFideId "25035525"]
[BlackFideId "32068182"]
[WhiteElo "2190"]
[BlackElo "2174"]
[Result "1-0"]
[Round "03"]
[TimeControl "180+2"]
[Date "2023.05.16"]
[WhiteClock "0:01:37"]
[BlackClock "0:00:00"]

1. c4 {[%clk 0:03:00]}  Nf6 {[%clk 0:02:59]} 2. Nc3 {[%clk 0:03:00]}  g6 {[%clk 0:03:00]} 3. e4 {[%clk 0:03:01]}  d6 {[%clk 0:02:56]} 4. g3 {[%clk 0:03:01]}  c5 {[%clk 0:02:54]} 5. Bg2 {[%clk 0:03:02]}  Bg7 {[%clk 0:02:55]} 6. Nge2 {[%clk 0:03:02]}  O-O {[%clk 0:02:55]} 7. O-O {[%clk 0:03:03]}  Nc6 {[%clk 0:02:56]} 8. d3 {[%clk 0:03:03]}  Rb8 {[%clk 0:02:54]} 9. h3 {[%clk 0:03:03]}  a6 {[%clk 0:02:55]} 10. Be3 {[%clk 0:03:00]}  b5 {[%clk 0:02:45]} 11. Qd2 {[%clk 0:02:59]}  bxc4 {[%clk 0:02:24]} 12. dxc4 {[%clk 0:03:00]}  Ne5 {[%clk 0:02:25]} 13. b3 {[%clk 0:03:00]}  Bxh3 {[%clk 0:02:24]} 14. f4 {[%clk 0:03:00]}  Bxg2 {[%clk 0:02:01]} 15. fxe5 {[%clk 0:02:58]}  Nxe4 {[%clk 0:01:59]} 16. Nxe4 {[%clk 0:02:34]}  Bxe4 {[%clk 0:02:00]} 17. Rae1 {[%clk 0:02:33]}  Bxe5 {[%clk 0:01:54]} 18. Bh6 {[%clk 0:02:31]}  Bg7 {[%clk 0:01:48]} 19. Bxg7 {[%clk 0:02:30]}  Kxg7 {[%clk 0:01:49]} 20. Nf4 {[%clk 0:02:31]}  Ba8 {[%clk 0:01:43]} 21. Nh5+ {[%clk 0:02:23]}  gxh5 {[%clk 0:01:32]} 22. Qg5+ {[%clk 0:02:23]}  Kh8 {[%clk 0:01:32]} 23. Rxe7 {[%clk 0:02:23]}  Rg8 {[%clk 0:00:55]} 24. Qf6+ {[%clk 0:02:22]}  Rg7 {[%clk 0:00:56]} 25. Rf5 {[%clk 0:02:17]}  Be4 {[%clk 0:00:27]} 26. Rxe4 {[%clk 0:01:56]}  Qxf6 {[%clk 0:00:26]} 27. Rxf6 {[%clk 0:01:57]}  Rxg3+ {[%clk 0:00:27]} 28. Kf2 {[%clk 0:01:58]}  Rbg8 {[%clk 0:00:13]} 29. Rxf7 {[%clk 0:01:54]}  Rg2+ {[%clk 0:00:13]} 30. Kf1 {[%clk 0:01:46]}  Rg1+ {[%clk 0:00:14]} 31. Kf2 {[%clk 0:01:43]}  R8g2+ {[%clk 0:00:14]} 32. Kf3 {[%clk 0:01:43]}  Rf1+ {[%clk 0:00:11]} 33. Kxg2 {[%clk 0:01:43]}  Rxf7 {[%clk 0:00:12]} 34. Re6 {[%clk 0:01:40]}  Rd7 {[%clk 0:00:08]} 35. Rh6 {[%clk 0:01:39]}  Kg7 {[%clk 0:00:08]} 36. Rxh5 {[%clk 0:01:39]}  Re7 {[%clk 0:00:06]} 37. Rg5+ {[%clk 0:01:39]}  Kf6 {[%clk 0:00:04]} 38. Rg8 {[%clk 0:01:39]}  Re2+ {[%clk 0:00:04]} 39. Kf3 {[%clk 0:01:39]}  Rxa2 {[%clk 0:00:05]} 40. Rh8 {[%clk 0:01:39]}  Ke5 {[%clk 0:00:03]} 41. Rxh7 {[%clk 0:01:39]}  Ra3 {[%clk 0:00:04]} 42. Rh5+ {[%clk 0:01:39]}  Ke6 {[%clk 0:00:04]} 43. Ke4 {[%clk 0:01:39]}  Rxb3 {[%clk 0:00:04]} 44. Rh6+ {[%clk 0:01:39]}  Kd7 {[%clk 0:00:04]} 45. Rh8 {[%clk 0:01:38]}  Rb1 {[%clk 0:00:00]} 46. Ra8 {[%clk 0:01:37]} 1-0


[Site "https://www.chess.com"]

[Event "Titled Tuesday Blitz May 16 Early 2023"]
[White "Jakubowski, Krzysztof"]
[Black "LangesNasenhaar"]
[WhiteFideId "1112848"]
[WhiteElo "2359"]
[BlackElo "2417"]
[Result "1-0"]
[Round "03"]
[TimeControl "180+2"]
[Date "2023.05.16"]
[WhiteClock "0:00:03"]
[BlackClock "0:00:00"]

1. e4 {[%clk 0:02:55]}  d6 {[%clk 0:03:00]} 2. d4 {[%clk 0:02:52]}  Nf6 {[%clk 0:03:00]} 3. Nc3 {[%clk 0:02:51]}  Nbd7 {[%clk 0:03:01]} 4. Nge2 {[%clk 0:02:45]}  e5 {[%clk 0:03:01]} 5. f3 {[%clk 0:02:38]}  c6 {[%clk 0:02:59]} 6. Be3 {[%clk 0:02:38]}  b5 {[%clk 0:02:59]} 7. Qd2 {[%clk 0:02:37]}  b4 {[%clk 0:02:55]} 8. Nd1 {[%clk 0:02:36]}  d5 {[%clk 0:02:56]} 9. Nf2 {[%clk 0:02:29]}  Qa5 {[%clk 0:02:29]} 10. g4 {[%clk 0:02:04]}  dxe4 {[%clk 0:02:28]} 11. fxe4 {[%clk 0:02:03]}  Nb6 {[%clk 0:02:16]} 12. b3 {[%clk 0:01:32]}  Bxg4 {[%clk 0:02:08]} 13. dxe5 {[%clk 0:01:27]}  Qxe5 {[%clk 0:02:04]} 14. Bd4 {[%clk 0:01:26]}  Qc7 {[%clk 0:01:52]} 15. e5 {[%clk 0:01:02]}  Nfd5 {[%clk 0:01:43]} 16. Nxg4 {[%clk 0:01:01]}  O-O-O {[%clk 0:01:33]} 17. O-O-O {[%clk 0:01:00]}  Be7 {[%clk 0:01:27]} 18. Bh3 {[%clk 0:00:47]}  Kb8 {[%clk 0:01:24]} 19. Qe1 {[%clk 0:00:42]}  c5 {[%clk 0:01:20]} 20. Bb2 {[%clk 0:00:41]}  Bg5+ {[%clk 0:01:19]} 21. Kb1 {[%clk 0:00:41]}  h5 {[%clk 0:01:12]} 22. Nf2 {[%clk 0:00:40]}  Ne3 {[%clk 0:01:07]} 23. Rxd8+ {[%clk 0:00:40]}  Rxd8 {[%clk 0:01:08]} 24. Ne4 {[%clk 0:00:36]}  Rd1+ {[%clk 0:00:55]} 25. Qxd1 {[%clk 0:00:35]}  Nxd1 {[%clk 0:00:56]} 26. Rxd1 {[%clk 0:00:35]}  Be7 {[%clk 0:00:55]} 27. Nf4 {[%clk 0:00:33]}  c4 {[%clk 0:00:46]} 28. Nd6 {[%clk 0:00:33]}  c3 {[%clk 0:00:44]} 29. Bc1 {[%clk 0:00:32]}  Nd7 {[%clk 0:00:40]} 30. Nd5 {[%clk 0:00:32]}  Qc5 {[%clk 0:00:34]} 31. Nxe7 {[%clk 0:00:30]}  Nxe5 {[%clk 0:00:34]} 32. Rd5 {[%clk 0:00:25]}  Qg1 {[%clk 0:00:19]} 33. Rxe5 {[%clk 0:00:23]}  Qxh2 {[%clk 0:00:19]} 34. Rb5+ {[%clk 0:00:20]}  Kc7 {[%clk 0:00:17]} 35. Ne8+ {[%clk 0:00:20]}  Kd8 {[%clk 0:00:15]} 36. Nxg7 {[%clk 0:00:16]}  Qxh3 {[%clk 0:00:11]} 37. Ngf5 {[%clk 0:00:15]}  Kd7 {[%clk 0:00:09]} 38. Rxb4 {[%clk 0:00:16]}  Qf1 {[%clk 0:00:08]} 39. Rd4+ {[%clk 0:00:16]}  Ke6 {[%clk 0:00:07]} 40. Rd3 {[%clk 0:00:16]}  h4 {[%clk 0:00:07]} 41. Re3+ {[%clk 0:00:13]}  Kd7 {[%clk 0:00:07]} 42. Rxc3 {[%clk 0:00:13]}  h3 {[%clk 0:00:07]} 43. Nd5 {[%clk 0:00:11]}  h2 {[%clk 0:00:05]} 44. Ng3 {[%clk 0:00:11]}  h1=Q {[%clk 0:00:04]} 45. Nxh1 {[%clk 0:00:10]}  Qxh1 {[%clk 0:00:04]} 46. Rd3 {[%clk 0:00:10]}  Kc8 {[%clk 0:00:03]} 47. Nf4 {[%clk 0:00:10]}  Qe4 {[%clk 0:00:02]} 48. a4 {[%clk 0:00:10]}  f5 {[%clk 0:00:02]} 49. Be3 {[%clk 0:00:10]}  Qe7 {[%clk 0:00:02]} 50. Kb2 {[%clk 0:00:10]}  a6 {[%clk 0:00:02]} 51. Bd4 {[%clk 0:00:09]}  Qb7 {[%clk 0:00:03]} 52. Rc3+ {[%clk 0:00:08]}  Kd7 {[%clk 0:00:02]} 53. Rc4 {[%clk 0:00:09]}  Qa8 {[%clk 0:00:02]} 54. Bc3 {[%clk 0:00:09]}  Ke8 {[%clk 0:00:02]} 55. Nd3 {[%clk 0:00:10]}  Kf7 {[%clk 0:00:03]} 56. Rc5 {[%clk 0:00:09]}  Kg6 {[%clk 0:00:03]} 57. Rc7 {[%clk 0:00:06]}  Qe4 {[%clk 0:00:03]} 58. Rg7+ {[%clk 0:00:06]}  Kh6 {[%clk 0:00:02]} 59. Rg8 {[%clk 0:00:04]}  f4 {[%clk 0:00:03]} 60. Rf8 {[%clk 0:00:04]}  f3 {[%clk 0:00:03]} 61. Bd2+ {[%clk 0:00:04]}  Kg7 {[%clk 0:00:03]} 62. Rf4 {[%clk 0:00:04]}  Qe7 {[%clk 0:00:03]} 63. Bc3+ {[%clk 0:00:04]}  Kg6 {[%clk 0:00:02]} 64. Rxf3 {[%clk 0:00:04]}  Qe4 {[%clk 0:00:03]} 65. Rf6+ {[%clk 0:00:05]}  Kg5 {[%clk 0:00:03]} 66. Rxa6 {[%clk 0:00:05]}  Qb7 {[%clk 0:00:04]} 67. Rf6 {[%clk 0:00:05]}  Kg4 {[%clk 0:00:04]} 68. a5 {[%clk 0:00:06]}  Qe7 {[%clk 0:00:05]} 69. a6 {[%clk 0:00:06]}  Qa7 {[%clk 0:00:05]} 70. Rf4+ {[%clk 0:00:06]}  Kg3 {[%clk 0:00:05]} 71. Rf6 {[%clk 0:00:07]}  Qc7 {[%clk 0:00:05]} 72. Re6 {[%clk 0:00:05]}  Qd7 {[%clk 0:00:05]} 73. Rb6 {[%clk 0:00:05]}  Qa7 {[%clk 0:00:04]} 74. Bd4 {[%clk 0:00:05]}  Kg4 {[%clk 0:00:03]} 75. Rb4 {[%clk 0:00:04]}  Qf7 {[%clk 0:00:02]} 76. a7 {[%clk 0:00:04]}  Qe8 {[%clk 0:00:01]} 77. Ra4 {[%clk 0:00:04]}  Qa8 {[%clk 0:00:01]} 78. Nc5 {[%clk 0:00:04]}  Kf5 {[%clk 0:00:00]} 79. Bc3 {[%clk 0:00:03]} 1-0


[Site "https://www.chess.com"]

[Event "Titled Tuesday Blitz May 16 Early 2023"]
[White "Fikiet, Alex"]
[Black "Hnydiuk, Aleksander"]
[WhiteFideId "2052717"]
[BlackFideId "1109057"]
[WhiteElo "2398"]
[BlackElo "2374"]
[Result "1/2-1/2"]
[Round "03"]
[TimeControl "180+2"]
[Date "2023.05.16"]
[WhiteClock "0:00:12"]
[BlackClock "0:00:09"]

1. e4 {[%clk 0:03:00]}  Nf6 {[%clk 0:02:59]} 2. e5 {[%clk 0:02:57]}  Nd5 {[%clk 0:02:59]} 3. d4 {[%clk 0:02:57]}  d6 {[%clk 0:02:59]} 4. Nf3 {[%clk 0:02:57]}  dxe5 {[%clk 0:02:59]} 5. Nxe5 {[%clk 0:02:57]}  c6 {[%clk 0:02:59]} 6. c4 {[%clk 0:02:51]}  Nf6 {[%clk 0:02:58]} 7. Be3 {[%clk 0:02:50]}  Bf5 {[%clk 0:02:54]} 8. Nc3 {[%clk 0:02:50]}  Nbd7 {[%clk 0:02:46]} 9. Be2 {[%clk 0:02:38]}  e6 {[%clk 0:02:42]} 10. O-O {[%clk 0:02:37]}  Bd6 {[%clk 0:02:39]} 11. Nd3 {[%clk 0:02:27]}  O-O {[%clk 0:02:37]} 12. Rc1 {[%clk 0:02:23]}  Rc8 {[%clk 0:02:34]} 13. Qb3 {[%clk 0:02:14]}  Qc7 {[%clk 0:02:31]} 14. h3 {[%clk 0:02:11]}  e5 {[%clk 0:02:23]} 15. c5 {[%clk 0:02:08]}  Be7 {[%clk 0:02:17]} 16. dxe5 {[%clk 0:01:59]}  Ne4 {[%clk 0:01:59]} 17. Nxe4 {[%clk 0:01:54]}  Bxe4 {[%clk 0:02:00]} 18. f4 {[%clk 0:01:53]}  Bd5 {[%clk 0:01:51]} 19. Qc3 {[%clk 0:01:49]}  f6 {[%clk 0:01:50]} 20. Bd4 {[%clk 0:01:44]}  Rfe8 {[%clk 0:01:37]} 21. Bg4 {[%clk 0:01:40]}  Rcd8 {[%clk 0:01:22]} 22. e6 {[%clk 0:01:35]}  Nf8 {[%clk 0:01:20]} 23. f5 {[%clk 0:01:35]}  Qg3 {[%clk 0:01:16]} 24. Nf4 {[%clk 0:01:27]}  Qxc3 {[%clk 0:01:12]} 25. bxc3 {[%clk 0:01:19]}  Bxa2 {[%clk 0:00:56]} 26. Ra1 {[%clk 0:01:18]}  Bc4 {[%clk 0:00:56]} 27. Rfb1 {[%clk 0:01:17]}  Ba6 {[%clk 0:00:46]} 28. Be2 {[%clk 0:01:10]}  Bxe2 {[%clk 0:00:36]} 29. Nxe2 {[%clk 0:01:09]}  Rd5 {[%clk 0:00:32]} 30. Rxb7 {[%clk 0:00:43]}  Rxf5 {[%clk 0:00:29]} 31. Raxa7 {[%clk 0:00:39]}  Ng6 {[%clk 0:00:29]} 32. Rc7 {[%clk 0:00:23]}  Bf8 {[%clk 0:00:20]} 33. Ng3 {[%clk 0:00:22]}  Rxc5 {[%clk 0:00:18]} 34. Bxc5 {[%clk 0:00:15]}  Bxc5+ {[%clk 0:00:19]} 35. Kh2 {[%clk 0:00:15]}  Bxa7 {[%clk 0:00:20]} 36. Rxa7 {[%clk 0:00:16]}  Rxe6 {[%clk 0:00:20]} 37. Nf5 {[%clk 0:00:16]}  Nf4 {[%clk 0:00:15]} 38. Rxg7+ {[%clk 0:00:15]}  Kf8 {[%clk 0:00:15]} 39. g4 {[%clk 0:00:15]}  Re2+ {[%clk 0:00:12]} 40. Kg3 {[%clk 0:00:15]}  Ne6 {[%clk 0:00:12]} 41. Rxh7 {[%clk 0:00:15]}  Rc2 {[%clk 0:00:09]} 42. Rh8+ {[%clk 0:00:12]}  Kf7 {[%clk 0:00:09]} 43. Rh7+ {[%clk 0:00:12]}  Kf8 {[%clk 0:00:09]} 44. Rh8+ {[%clk 0:00:12]}  Kf7 {[%clk 0:00:09]} 45. Rh7+ {[%clk 0:00:12]}  Kf8 {[%clk 0:00:09]} 1/2-1/2


[Site "https://www.chess.com"]

[Event "Titled Tuesday Blitz May 16 Early 2023"]
[White "Matveeva, Olga"]
[Black "SashaKuzhilniy"]
[WhiteFideId "24107018"]
[WhiteElo "2009"]
[BlackElo "2579"]
[Result "0-1"]
[Round "03"]
[TimeControl "180+2"]
[Date "2023.05.16"]
[WhiteClock "0:00:03"]
[BlackClock "0:00:29"]

1. d4 {[%clk 0:03:00]}  Nf6 {[%clk 0:02:54]} 2. c4 {[%clk 0:03:01]}  e5 {[%clk 0:02:54]} 3. dxe5 {[%clk 0:03:00]}  Ng4 {[%clk 0:02:55]} 4. Nf3 {[%clk 0:02:59]}  Bc5 {[%clk 0:02:54]} 5. e3 {[%clk 0:02:59]}  Nc6 {[%clk 0:02:54]} 6. Nc3 {[%clk 0:02:58]}  O-O {[%clk 0:02:51]} 7. Be2 {[%clk 0:02:57]}  Ngxe5 {[%clk 0:02:51]} 8. Nxe5 {[%clk 0:02:58]}  Nxe5 {[%clk 0:02:52]} 9. O-O {[%clk 0:02:58]}  Re8 {[%clk 0:02:48]} 10. b3 {[%clk 0:02:44]}  a5 {[%clk 0:02:48]} 11. Na4 {[%clk 0:02:19]}  Bf8 {[%clk 0:02:36]} 12. Bb2 {[%clk 0:02:11]}  Ra6 {[%clk 0:02:31]} 13. f4 {[%clk 0:01:53]}  Rd6 {[%clk 0:02:23]} 14. Qc2 {[%clk 0:01:48]}  Nc6 {[%clk 0:02:21]} 15. c5 {[%clk 0:01:39]}  Rh6 {[%clk 0:02:19]} 16. Rf3 {[%clk 0:01:30]}  d5 {[%clk 0:02:05]} 17. cxd6 {[%clk 0:01:25]}  Qh4 {[%clk 0:02:01]} 18. h3 {[%clk 0:01:20]}  Bxd6 {[%clk 0:01:55]} 19. Qc3 {[%clk 0:01:13]}  Rg6 {[%clk 0:01:44]} 20. Kh1 {[%clk 0:00:57]}  Bg4 {[%clk 0:01:29]} 21. Rd1 {[%clk 0:00:26]}  Bxf3 {[%clk 0:01:17]} 22. Bxf3 {[%clk 0:00:27]}  Ne7 {[%clk 0:01:10]} 23. Nc5 {[%clk 0:00:25]}  Nf5 {[%clk 0:01:02]} 24. e4 {[%clk 0:00:16]}  Qxf4 {[%clk 0:00:54]} 25. Kg1 {[%clk 0:00:12]}  Qh2+ {[%clk 0:00:38]} 26. Kf2 {[%clk 0:00:11]}  Qg3+ {[%clk 0:00:32]} 27. Kg1 {[%clk 0:00:10]}  Nh4 {[%clk 0:00:31]} 28. e5 {[%clk 0:00:03]}  Nxf3+ {[%clk 0:00:29]} 0-1


[Site "https://www.chess.com"]

[Event "Titled Tuesday Blitz May 16 Early 2023"]
[White "Fernandez Siles, Luis"]
[Black "Potkin, Vladimir"]
[WhiteFideId "2209420"]
[BlackFideId "4131061"]
[WhiteElo "2195"]
[BlackElo "2474"]
[Result "0-1"]
[Round "03"]
[TimeControl "180+2"]
[Date "2023.05.16"]
[WhiteClock "0:00:00"]
[BlackClock "0:00:31"]

1. e4 {[%clk 0:03:00]}  c5 {[%clk 0:02:57]} 2. Nf3 {[%clk 0:03:00]}  e6 {[%clk 0:02:57]} 3. c3 {[%clk 0:03:00]}  Nf6 {[%clk 0:02:55]} 4. e5 {[%clk 0:03:00]}  Nd5 {[%clk 0:02:55]} 5. Bc4 {[%clk 0:03:00]}  Nc6 {[%clk 0:02:54]} 6. O-O {[%clk 0:02:59]}  d6 {[%clk 0:02:53]} 7. d4 {[%clk 0:02:59]}  cxd4 {[%clk 0:02:53]} 8. cxd4 {[%clk 0:03:00]}  Be7 {[%clk 0:02:54]} 9. Qe2 {[%clk 0:02:57]}  O-O {[%clk 0:02:54]} 10. Bd2 {[%clk 0:02:54]}  a6 {[%clk 0:02:35]} 11. Nc3 {[%clk 0:02:52]}  Nxc3 {[%clk 0:02:34]} 12. Bxc3 {[%clk 0:02:50]}  b5 {[%clk 0:02:28]} 13. Bd3 {[%clk 0:02:50]}  Bb7 {[%clk 0:02:27]} 14. Qe4 {[%clk 0:02:22]}  g6 {[%clk 0:02:26]} 15. exd6 {[%clk 0:02:04]}  Qxd6 {[%clk 0:02:23]} 16. Qe3 {[%clk 0:01:57]}  Bf6 {[%clk 0:02:14]} 17. Rad1 {[%clk 0:01:38]}  b4 {[%clk 0:02:09]} 18. Be1 {[%clk 0:01:19]}  Nxd4 {[%clk 0:01:59]} 19. Be4 {[%clk 0:01:10]}  Bxe4 {[%clk 0:01:53]} 20. Qxe4 {[%clk 0:01:02]}  Rad8 {[%clk 0:01:33]} 21. Kh1 {[%clk 0:00:38]}  a5 {[%clk 0:01:12]} 22. h4 {[%clk 0:00:31]}  Qd5 {[%clk 0:01:04]} 23. Qf4 {[%clk 0:00:18]}  Qf5 {[%clk 0:01:04]} 24. Qxf5 {[%clk 0:00:15]}  Nxf5 {[%clk 0:01:02]} 25. Bd2 {[%clk 0:00:10]}  Bxb2 {[%clk 0:01:00]} 26. Bg5 {[%clk 0:00:08]}  f6 {[%clk 0:00:54]} 27. Be3 {[%clk 0:00:06]}  Nxe3 {[%clk 0:00:43]} 28. fxe3 {[%clk 0:00:06]}  e5 {[%clk 0:00:36]} 29. Nd2 {[%clk 0:00:00]}  a4 {[%clk 0:00:31]} 0-1


[Site "https://www.chess.com"]